Cogmind - Beta 11 X4 @@@ ROGUE MODE // 2021.05.02 @ 15:21:05 Player: athros Result: Destroyed by H-55 Commando with Gauss Rifle Performance ------------- Evolutions (2) 1000 Regions Visited (3) 600 Robots Destroyed (34) 170 Value Destroyed (834) 834 Prototype IDs (2) 40 Alien Tech Used (0) 0 Bonus (0) 0 TOTAL SCORE: 2644 Bonus ------- None Cogmind --------- Core Integrity 0/550 Matter 149/300 Energy 275/275 System Corruption 0% Temperature Cool (0) Movement Core (500) Ox9 Location -8/Materials Parts ------- > --- POWER (1) -------- Deuterium Engine > --- PROPULSION (3) --- (None) > --- UTILITY (5) ------ Large Storage Unit Improved Targeting Computer > --- WEAPON (2) ------- (None) > --- INVENTORY (15) --- Heavy Ion Engine Advanced Weight Redist. System Salvage Targeting Computer Particle Charger Hardened Light Armor Plating Shield Generator Hacking Suite Small Laser Ion Cannon Ion Cannon Mini Grenade Launcher Mining Claw Peak State ------------ > --- POWER ------------ Heavy Ion Engine > --- PROPULSION ------- Aluminum Leg Aluminum Leg > --- UTILITY ---------- Heat Sink Large Storage Unit Sensor Array Improved Targeting Computer Particle Charger > --- WEAPON ----------- Ion Cannon Mini Grenade Launcher > --- INVENTORY -------- Ion Engine Heavy Ion Engine Light Armor Plating Hardened Light Armor Plating Small Laser Improved Medium Laser Ion Cannon Ion Cannon Assault Rifle Mini Grenade Launcher Mining Claw [Rating: 20] Favorites ----------- Power Light Ion Engine Engine Light Ion Engine Propulsion Aluminum Leg Treads Light Treads Leg Aluminum Leg Utility Large Storage Unit Device Sensor Array Storage Large Storage Unit Processor Improved Targeting Computer Protection Light Armor Plating Weapon Mini Grenade Launcher Energy Gun Medium Laser Energy Cannon Ion Cannon Ballistic Gun Assault Rifle Launcher Mini Grenade Launcher Slashing Weapon Mining Claw Build | -11 -10 -9 -8 ------- Run | Scr Mat Mat Mat Slots Evolved 4 | . . 2 2 Power . | . . . . Propulsion 1 | . . 1 . Utility 3 | . . 1 2 Weapon . | . . . . Parts Attached 37 | 6 3 13 15 Power 5 | 1 . 3 1 Engine 5 | 1 . 3 1 Core . | . . . . Reactor . | . . . . Propulsion 5 | 2 . 2 1 Treads 1 | . . . 1 Leg 4 | 2 . 2 . Wheel . | . . . . Hover . | . . . . Flight . | . . . . Utility 16 | 1 2 2 11 Device 7 | . 1 1 5 Storage 2 | 1 1 . . Processor 2 | . . 1 1 Hackware . | . . . . Protection 5 | . . . 5 Artifact . | . . . . Weapon 11 | 2 1 6 2 Energy Gun 5 | 2 . 2 1 Energy Cannon 3 | . . 3 . Ballistic Gun 1 | . . . 1 Ballistic Cannon . | . . . . Launcher 1 | . . 1 . Special Weapon . | . . . . Impact Weapon . | . . . . Slashing Weapon 1 | . 1 . . Piercing Weapon . | . . . . Special Melee Weapon . | . . . . Unidentified Prototypes 2 | . . 2 . Parts Lost 15 | . . 4 11 Power 1 | . . . 1 Propulsion 5 | . . 2 3 Utility 4 | . . 1 3 Weapon 5 | . . 1 4 Highest Loss Streak 10 | . . 2 10 Average Slot Usage (%) 84 | . 99 89 60 Engine 10 | . 14 11 7 Leg 22 | . 28 27 7 Device 13 | . 13 13 11 Storage 11 | . 14 11 9 Processor 4 | . . 4 9 Energy Gun 7 | . 18 6 . Energy Cannon 4 | . . 6 4 Launcher 5 | . . 8 4 Slashing Weapon 2 | . 10 . . Naked Turns . | . . . . Heaviest Build 40 | 11 28 36 40 Greatest Support 30 | 20 20 30 20 Greatest Overweight (x) 10 | 3 1 1 10 Average Overweight (x) 1 | . . . 3 Largest Inventory Capacity 15 | 8 15 15 15 Average Capacity 14 | 7 14 15 15 Most Carried 15 | 2 3 15 15 Average Carried 9 | 1 2 10 12 Final Capacity 15 | 8 15 15 15 Final Carried 12 | 2 3 12 12 Class Distribution -------------------- 98% | Mutant Dominant Class ---------------- Mutant | -10/Materials Mutant | -9/Materials Mutant | -8/Materials Resources | -11 -10 -9 -8 ----------- Run | Scr Mat Mat Mat Matter Collected 682 | 195 35 399 53 Remotely . | . . . . Salvage Created 908 | . 35 637 236 Parts 70 | . 7 42 21 Haulers Intercepted 2 | . . 2 . Recyclers Shooed 1 | . . 1 . Parts Field Recycled . | . . . . Retrieved Matter . | . . . . Parts Self-Destructed . | . . . . Prevented . | . . . . Kills | -11 -10 -9 -8 ------- Run | Scr Mat Mat Mat Combat Hostiles Destroyed 25 | . 3 15 7 Guns 7 | . 3 2 2 Cannons 5 | . . 3 2 AOE 13 | . . 10 3 Classes Destroyed 8 | . 1 6 1 Worker 3 | . . 3 . Builder 1 | . . . 1 Hauler 2 | . . 2 . Recycler 1 | . . 1 . Watcher 2 | . . 2 . Swarmer 9 | . 3 4 2 Grunt 11 | . . 7 4 Sentry 5 | . . 4 1 Best Kill Streak 6 | . 3 6 5 Combat Bots Only 4 | . 3 4 4 Max Kills in Single Turn 2 | . 1 2 2 Gunslinging . | . . . . Exploded 2 | . . 2 2 Melee . | . . . . Uniques/NPCs Destroyed . | . . . . Combat | -11 -10 -9 -8 -------- Run | Scr Mat Mat Mat Damage Taken 2117 | . 125 643 1349 Core 734 | . 17 159 558 Absorbed by Shields . | . . . . Core Remaining (%) 84 | 100 93 60 . Volleys Fired 108 | . 9 59 40 Largest 2 | . 1 2 1 Hottest 90 | . 50 90 60 Shots Fired 110 | . 8 62 40 Gun 56 | . 8 20 28 Cannon 27 | . . 18 9 Launcher 27 | . . 24 3 Special . | . . . . Kinetic 20 | . . . 20 Thermal 63 | . 8 38 17 Explosive 27 | . . 24 3 Electromagnetic . | . . . . Robot Hit Streak 14 | . 2 14 7 Robot Miss Streak 5 | . 2 5 4 Penetration Max . | . . . . Secondary Targets . | . . . . Shots Hit Robots 73 | . 4 41 28 Core Hits 51 | . 3 34 14 Critical Kills . | . . . . Critical Parts Destroyed . | . . . . Critical Strikes 4 | . . 3 1 Burn 4 | . . 3 1 Melee Attacks 1 | . 1 . . Impact . | . . . . Slashing 1 | . 1 . . Piercing . | . . . . Sneak Attacks . | . . . . Combat Hostiles . | . . . . Follow-up Attacks . | . . . . Damage Inflicted 2597 | . 48 1672 877 Guns 543 | . 48 227 268 Cannons 419 | . . 238 181 Explosions 1635 | . . 1207 428 Melee . | . . . . Ramming . | . . . . Kinetic 164 | . . . 164 Thermal 798 | . 48 465 285 Explosive 1635 | . . 1207 428 Electromagnetic . | . . . . Impact . | . . . . Slashing . | . . . . Piercing . | . . . . Highest Corruption 4 | . 4 . . Average Corruption 3 | . 3 . . Corruption Purged . | . . . . Effects 3 | . 3 . . Matter Fused 1 | . 1 . . Data Loss (minor) 1 | . 1 . . Weapon Failures 1 | . 1 . . Overload Shots . | . . . . Overflow Damage 110 | . . 56 54 Projectiles . | . . . . Explosions 110 | . . 56 54 Melee . | . . . . Knockbacks . | . . . . Impact . | . . . . Kinetic . | . . . . Secondary . | . . . . Self-Inflicted Damage 160 | . . 67 93 Shots 5 | . . 2 3 Rammed . | . . . . Targets Rammed . | . . . . Kicked . | . . . . Crushed . | . . . . Highest Temperature 105 | . 60 105 57 Average Temperature 31 | . 30 35 19 Received Heat Transfer 693 | . . 222 471 Siege Activations . | . . . . Robots Corrupted . | . . . . Combat Hostiles . | . . . . Parts Fried . | . . . . Impact Corruptions . | . . . . Robots Melted . | . . . . Combat Hostiles . | . . . . Parts Melted 5 | . . 4 1 Heat Transferred 1851 | . 148 1111 592 Parts Sabotaged . | . . . . Parts Stolen . | . . . . Parts Stripped . | . . . . Power Chain Reactions . | . . . . Missiles Intercepted . | . . . . Alert | -11 -10 -9 -8 ------- Run | Scr Mat Mat Mat Peak Influence 301 | . 87 301 296 Initial 83 | . . 36 83 Average 119 | . 16 145 175 Maximum Alert Level 1 | . . 1 1 Low Security (%) 78 | 100 100 79 55 Level 1 21 | . . 20 44 Level 2 . | . . . . Level 3 . | . . . . Level 4 . | . . . . Level 5 . | . . . . High Security . | . . . . Max Security . | . . . . Squads Dispatched 1 | . . 1 . Investigation . | . . . . Extermination . | . . . . Reinforcement 1 | . . 1 . Assault . | . . . . Garrison . | . . . . Intercept . | . . . . Construction Impeded 1 | . . 1 . Haulers Reinforced . | . . . . Cargo Convoy Interrupts . | . . . . Stealth | -11 -10 -9 -8 --------- Run | Scr Mat Mat Mat Distress Signals 6 | . . 5 1 Communications Jammed . | . . . . Distress Signals . | . . . . Times Spotted 47 | . 8 24 15 Peak Tracking Total 9 | . 3 5 9 Tactical Retreats 5 | . . 2 3 Traps | -11 -10 -9 -8 ------- Run | Scr Mat Mat Mat Traps Triggered 2 | . 2 . . Indirectly . | . . . . Trap Hack Attempts . | . . . . Triggered . | . . . . Disarmed . | . . . . Reprogrammed . | . . . . Reused . | . . . . Traps Extracted . | . . . . Installed . | . . . . Triggered . | . . . . Machines | -11 -10 -9 -8 ---------- Run | Scr Mat Mat Mat Machines Disabled 3 | . . 1 2 Max in Single Turn 2 | . . 1 2 Machines Sabotaged . | . . . . Garrisons Compromised . | . . . . Overloaded Fab Kills . | . . . . Fab Network Shutdowns . | . . . . Hacking | -11 -10 -9 -8 --------- Run | Scr Mat Mat Mat Machines Accessed 7 | . 3 4 . Terminals 7 | . 3 4 . Fabricators . | . . . . Repair Stations . | . . . . Recycling Units . | . . . . Scanalyzers . | . . . . Garrison Access . | . . . . Total Hacks 18 | . 6 12 . Successful 8 | . 2 6 . Failed 10 | . 4 6 . Catastrophic 1 | . 1 . . Database Lockouts . | . . . . Manual 12 | . 3 9 . Terminals 18 | . 6 12 . Fabricators . | . . . . Repair Stations . | . . . . Recycling Units . | . . . . Scanalyzers . | . . . . Garrison Access . | . . . . Terminal Hacks 3 | . 1 2 . Record 2 | . 1 1 . Robot Analysis 1 | . . 1 . Fabricator Hacks . | . . . . Repair Station Hacks . | . . . . Recycling Unit Hacks . | . . . . Scanalyzer . | . . . . Garrison Access Hacks . | . . . . Unauthorized Hacks 5 | . 1 4 . Terminals 5 | . 1 4 . Track 4 | . 1 3 . Assimilate 1 | . . 1 . Fabricators . | . . . . Repair Stations . | . . . . Recycling Units . | . . . . Scanalyzers . | . . . . Garrison Access . | . . . . Data Cores Recovered . | . . . . Used . | . . . . Hacking Detections 6 | . 3 3 . Full Trace Events 2 | . 1 1 . Feedback Events . | . . . . Feedback Blocked . | . . . . Robot Schematics Acquired . | . . . . Robots Built . | . . . . Matter . | . . . . Time . | . . . . Total Robot Build Rating . | . . . . Part Schematics Acquired . | . . . . Parts Built . | . . . . Matter . | . . . . Time . | . . . . Total Part Build Rating . | . . . . Parts Repaired . | . . . . Time . | . . . . Parts Recycled . | . . . . Recycled Matter . | . . . . Retrieved Matter . | . . . . Retrieved Components . | . . . . Parts Scanalyzed . | . . . . Part Schematics Acquired . | . . . . Parts Damaged . | . . . . Bothacking | -11 -10 -9 -8 ------------ Run | Scr Mat Mat Mat Used RIF Installer . | . . . . Robots Hacked . | . . . . Non-combat . | . . . . Combat . | . . . . Robot Hacks Applied . | . . . . Relay Couplers Released . | . . . . Robots Rewired . | . . . . Allies Hacked . | . . . . Hacks Repelled . | . . . . Allies | -11 -10 -9 -8 -------- Run | Scr Mat Mat Mat Total Allies . | . . . . Largest Group . | . . . . Highest-Rated Group . | . . . . Highest-Rated Ally . | . . . . Total Orders . | . . . . Ally Attacks . | . . . . Total Damage . | . . . . Kills . | . . . . Allies Corrupted . | . . . . Allies Melted . | . . . . Intel | -11 -10 -9 -8 ------- Run | Scr Mat Mat Mat Robot Analysis Total 1 | . . 1 . Derelict Logs Recovered . | . . . . Drone Launches . | . . . . Drone Recoveries . | . . . . Exploration | -11 -10 -9 -8 ------------- Run | Scr Mat Mat Mat Turns Passed 1771 | 89 356 910 416 Spaces Moved 750 | 59 179 404 108 Core 52 | 25 . . 27 Treads 8 | . . . 8 Legs 690 | 34 179 404 73 Wheels . | . . . . Hover . | . . . . Flight . | . . . . Fastest Speed 50 | 50 120 120 200 Average Speed 195 | 133 184 184 287 Slowest Speed 550 | 200 200 200 550 Overloaded Moves . | . . . . Propulsion Burnouts . | . . . . Robots Hopped . | . . . . Cave-ins Triggered . | . . . . Exploration Rate (%) 25 | 3 37 42 21 Regions Visited 3 Branch Regions . Pre-discovered Areas . | . . . . Known Exits Taken . | . . . . Unknown Exits Taken 3 | 1 1 1 . Scrap Searched . | . . . . Spaces Dug 12 | . 1 11 . Terrain Destroyed 161 | . 1 144 16 Melee 1 | . 1 . . Projectile 5 | . . 5 . AOE 155 | . . 139 16 Terrain Rammed . | . . . . Walls Destroyed . | . . . . Machines Disabled . | . . . . Actions | -11 -10 -9 -8 --------- Run | Scr Mat Mat Mat Total 936 | 66 193 506 171 Wait 8 | . . 8 . Move 747 | 58 178 403 108 Hop . | . . . . Pick Up 27 | 2 1 17 7 Fast Attach 9 | 6 1 1 1 Attach 10 | . . 5 5 Detach 1 | . . 1 . Swap 18 | . 2 7 9 Drop 7 | . 1 5 1 Fire 108 | . 9 59 40 Melee 1 | . 1 . . Ram . | . . . . Kick . | . . . . Crush . | . . . . Escape Stasis . | . . . . Rewire . | . . . . Trap . | . . . . Miscellaneous . | . . . . Route ------- -11/Scrapyard -10/Materials (discovered 2 exits: *Mat / [*Min]) -9/Materials (discovered 2 exits: [*Mat] / [*Min]) -8/Materials History --------- Turn | Location | Event 23 | -11/Scrapyard | Discovered new exit (range 15) 90 | -11/Scrapyard | Entered Materials 296 | -10/Materials | Discovered new exit (range 12) 312 | -10/Materials | Build established: Mutant 430 | -10/Materials | Discovered new exit (range 9) 446 | -10/Materials | Entered another Materials area 446 | -9/Materials | Evolved 2 slots: Propulsion x1, Utility x1 915 | -9/Materials | Discovered new exit (range 14) 973 | -9/Materials | Discovered new exit (range 7) 1356 | -9/Materials | Entered another Materials area 1356 | -8/Materials | Evolved 2 slots: Utility x2 1562 | -8/Materials | Core integrity fell below 50% 1607 | -8/Materials | Core integrity fell below 20% 1623 | -8/Materials | Lost 10 parts (1p3n3u3w) 1772 | -8/Materials | Destroyed by H-55 Commando with Gauss Rifle Last Messages --------------- 01625_ R-06 Scavenger collects Aluminum Leg. 01626_ U-05 Engineer lays Concrete. 01628_ R-06 Scavenger collects Imp. Heat Sink. 01628_ U-05 Engineer lays Concrete. 01632_ U-05 Engineer builds a Wall. 01637_ U-05 Engineer lays Concrete. 01640_ U-05 Engineer builds a Wall. 01644_ Acquired 53 matter. 01644_ U-05 Engineer lays Concrete. 01646_ U-05 Engineer builds a Wall. 01651_ U-05 Engineer lays Concrete. 01701_ K-01 Serf collects debris. 01737_ Slug penetrates Repair Station. 01737_ Repair Station disabled. 01739_ K-01 Serf collects debris. 01740_ Slug penetrates U-05 Engineer. 01745_ Slug penetrates Wall. 01760_ Penetrated by Slug. 01766_ Assault Rifle destroyed. 01769_ Penetrated by Slug. Map ----- +----------------------------------------------------+ | ?????????????????????????????????????????????????? | | ?????????????????????????????????????????????????? | | ?????????????????????????????????????????????????? | | ?????????????????????????????????????????????????? | | ?????????????????????????????????????????????????? | | ?????????????????????????????????????????????????? | | ?????????????????????????????????????????????????? | | ?????????????????????????????????????????????????? | | ?????????????????????????????????????????????????? | | ?????????????????????????##+##???????????????????? | | ?????????????????????????# ####??##????????????? | | ?????????????????????????# # #########"Y"?? | | ????????????????????????? # """ # ?? | | ?????????????????????????# # """ # ??? | | ?????????????????????????# # """ # " ?? | | ?????????????????????????# # # ! """"" | | ?????????????????????????# # *** # """ | | ?????????????????????????# # *** ## ^ ^ | | ?????????????????????????# # *** ## ? | | ?????????????????????????# # ## " "? | | ?????????????????????????+ h/ " " [## ! """"? | | ?????????????????????????# u# "R" ## """ | | ?????????????????????????# # "" ## | | ?????????????????????????# # / | | ?????????????????????##### w##########/#######??? | | ?????????????????????#// @ #????# ! * #????? | | ?????????????????????#// #????# #????? | | ?????????????????????#[[ #????# "" """ #????? | | ?????????????????????#[[ k#????# #????? | | ?????????????????????#!! #????# " #????? | | ?????????????????????#!! #????# #????? | | ?????????????????????##### u#### # #????? | | ?????????????????????????# # # ! #????? | | ?????????????????????????# #""######### ###????? | | ??????????????????? / "%+ #" %%[# ###??????? | | ???????????????????? "# r# [ ###????##### | | ?????????????????????????# #" ###### | | ?????????????????????????# #" # | | ?????????????????????????# #" ## # | | ?????????????????????????# a#" ## # | | ?????????????????????????# #" ## # | | ???????????????????????? #" ## # | | ?????????????????????? # ## ! [ ## # ! | | ?????????????????????###?# ??# %* #? # | | ?????????????????????????# #######+######+###### | | ?????????????????????? | | ?????????????????????? | | ?????????????????????? | | ???????????????????????######+#############+###### | | ??????????????????????????????????????# [#? | +----------------------------------------------------+ Best States ------------- Heat Dissipation 41 Energy Generation 14 Energy Capacity 280 Matter Stores 281 Matter Capacity 300 Sight Range 16 Robot Scan Range 14 Terrain Scan Density 10 Armor Coverage 150 Evasion (%) 55 Targeting Accuracy 6 Recoil Reduction 1 Particle Charging 15 Item Schematics ----------------- None Robot Schematics ------------------ None Fabricated ------------ Nothing Alien Tech Used ----------------- None Achievements -------------- None Challenges ------------ None Game ------ Seed BehemothMassMultirail Manual? 0 Play Time 00:23:44 Cumulative 1.4 hours Start 2021.05.02 @ 14:58:14 End 2021.05.02 @ 15:21:05 Sessions 1 Manual Loads 0 Difficulty Rogue Special Mode None Game No. 3 Rogue 3 Adventurer 0 Explorer 0 Win Type - Total 0 Types 0/0/0/0/0/0/0/0/0 Lore% 1 Gallery% 4 Achievement% 5 Wizard Run 0 Options --------- ASCII 0 Keyboard 1 Movement Numpad Keybinds 0 Fullscreen 1 Font 18/SmallcapsGlow Map View 76x50 Tactical HUD 1 Map Filters NONE Filters NONE Steam 1 RUN: bbc85e15-ba4e-4c6a-9f35-b77a8968d47d